fUST/lending_fUST_20250914
["ID","MTS","AMOUNT","RATE_DAILY","PERIOD"]
[385432260,1757845032751,373.0,0.00021286,2]
[385432261,1757845071839,1002.54680549,0.00021285,2]
[385432262,1757845083706,300.0,0.00021286,2]
[385432263,1757845143046,300.0,0.00021286,2]
[385432264,1757845155722,2756.46465566,0.000199,2]
[385432265,1757845155833,1519.6148707,0.00021149,2]
[385432266,1757845155857,1236.84978476,0.00021149,2]
[385432267,1757845193171,5300.0,0.00021,30]
[385432270,1757845203347,300.0,0.00021286,2]
[385432271,1757845203497,300.0,0.00021286,2]
[385432272,1757845203700,300.0,0.00021286,2]
[385432273,1757845204928,1200.0,0.00021286,2]
[385432274,1757845207754,300.0,0.00021286,2]
[385432275,1757845208932,154.57863201,0.00021287,2]
[385432276,1757845208981,151.3661364,0.00021287,2]
[385432277,1757845211741,250.0,0.00021287,2]
[385432278,1757845211988,513.85864079,0.00021287,2]
[385432279,1757845212662,250.0,0.00021287,2]
[385432280,1757845212847,500.0,0.00021287,2]
[385432281,1757845213153,532.18299788,0.00021287,2]
[385432282,1757845213257,250.0,0.00021287,2]
[385432283,1757845213871,250.0,0.00021287,2]
[385432284,1757845214560,250.0,0.00021287,2]
[385432285,1757845215071,158.15761106,0.00021287,2]
[385432286,1757845215114,3103.0161971,0.00021287,2]
[385432287,1757845215136,10000.01,0.00021287,2]
[385432295,1757845389450,-2572.70034527,0.000199,2]
[385432296,1757845389480,-2281.90896437,0.00021149,2]
[385432297,1757845389570,-290.79138072,0.00021149,2]
[385432298,1757845389600,-171.46463491,0.00021285,2]
[385432299,1757845389627,-300.0,0.00021286,2]
[385432300,1757845389656,-3674.38180841,0.00021286,2]
[385432301,1757845404103,-1126.73435192,0.00021286,2]
[385432302,1757845404131,-168.66639457,0.00021286,2]
[385432303,1757845404163,-168.66639457,0.00021286,2]
[385432304,1757845404190,-882.67451808,0.00021287,2]
[385432305,1757845424429,-802.0374444,0.00021216,2]
[385432306,1757845424456,-3089.40842948,0.00021287,2]
[385432307,1757845458026,3027.9,0.00024,30]
[385432308,1757845504638,-2063.74,0.00021277,3]
[385432309,1757845504678,-1031.87,0.00021277,3]
[385432310,1757845504720,-183.0,0.00021286,2]
[385432311,1757845504771,-300.0,0.00021286,2]
[385432312,1757845504803,-1200.0,0.00021286,2]
[385432313,1757845504842,-168.66639457,0.00021286,2]
[385433194,1757845715712,150.9999992,0.0002,120]
[385433195,1757845716182,905.99999918,0.00030172,120]
[385433231,1757845832236,-2401.18698877,0.000199,2]
[385433232,1757845832245,-300.0,0.00020411,2]
[385433233,1757845832255,-300.0,0.00020411,2]
[385433234,1757845832264,-555.0,0.00020411,2]
[385433235,1757845832273,-584.69230236,0.00020412,2]
[385433236,1757845832283,-2336.43044022,0.00020412,2]
[385433237,1757845832292,-417.58528882,0.00020412,2]
[385433239,1757845832302,-173.981,0.00020741,2]
[385433241,1757845832311,-2401.18698875,0.00021149,2]
[385433243,1757845832320,-641.62995552,0.00021216,2]
[385433244,1757845832329,-2449.31111867,0.00021253,2]
[385433246,1757845832338,-9714.48418642,0.00021253,2]
[385433248,1757845832349,-1480.000025,0.00021253,2]
[385433251,1757845832366,-3454.28545278,0.00021253,2]
[385433254,1757845832374,-433.57024684,0.00021273,2]
[385433257,1757845832383,-160.12392829,0.00021273,2]
[385433260,1757845832393,-500.0,0.00021273,2]
[385433263,1757845832404,-500.0,0.00021273,2]
[385433266,1757845832413,-500.0,0.00021273,2]
[385433268,1757845832423,-500.0,0.00021273,2]
[385433270,1757845832432,-500.0,0.00021273,2]
[385433272,1757845832441,-500.0,0.00021273,2]
[385433274,1757845832450,-500.57213425,0.00021273,2]
[385433275,1757845832459,-504.05476031,0.00021273,2]
[385433276,1757845832468,-250.0,0.00021274,2]
[385433277,1757845832478,-250.0,0.00021274,2]
[385433278,1757845832487,-250.0,0.00021274,2]
[385433279,1757845832496,-89.17743151,0.00021274,2]
[385433280,1757845832507,-451.04436464,0.00021274,2]
[385433281,1757845832517,-6330.74214277,0.00021274,2]
[385433282,1757845832526,-515.93,0.00021277,3]
[385433283,1757845832535,-257.97,0.00021277,3]
[385433284,1757845832544,-679.07658223,0.00021277,3]
[385433285,1757845832555,-94.85341777,0.00021277,3]
[385433286,1757845832563,-905.14658223,0.00021286,2]
[385433287,1757845832574,-2295.59752465,0.00021286,2]
[385433288,1757845832583,-500.0,0.00021286,2]
[385433289,1757845832592,-399.14688719,0.00021286,2]
[385433290,1757845832601,-168.66639457,0.00021286,2]
[385433291,1757845832610,-168.66639457,0.00021286,2]
[385433292,1757845832619,-8085.13051716,0.00021287,2]
[385433293,1757845838207,-647.60789106,0.00021252,2]
[385433294,1757845838217,-252.18996877,0.00021252,2]
[385433295,1757845838226,-111.92160457,0.00021287,2]
[385433300,1757845840320,-10193.79766685,0.00021287,2]
[385433321,1757845844253,-415.07431893,0.00021287,2]
[385433333,1757845844414,-812.44347529,0.00021287,2]
[385433334,1757845844426,-5375.44746854,0.00021287,2]
[385433343,1757845846260,-9319.9999997,0.00021287,2]
[385433344,1757845846271,-14617.50375961,0.00021287,2]
[385433345,1757845846281,-16299.80521158,0.00021287,2]
[385433346,1757845846293,-19180.76235329,0.00021287,2]
[385433347,1757845846314,-10121.88181537,0.00021287,2]
[385433348,1757845846374,-4564.10209538,0.00021287,2]
[385433349,1757845846385,-2090.45000001,0.00021287,2]
[385433350,1757845846395,-6897.25469269,0.00021287,2]
[385433351,1757845898463,155.160401,0.00024,30]
[385433385,1757846196102,-2366.69549746,0.000199,2]
[385433386,1757846196135,-300.0,0.00020411,2]
[385433387,1757846196166,-602.94528588,0.00020412,2]
[385433388,1757846196199,-1048.9472898,0.00020412,2]
[385433389,1757846236070,-2287.80564739,0.000199,2]
[385433390,1757846236098,-300.0,0.00020411,2]
[385433391,1757846236126,-1362.83385372,0.00020412,2]
[385433394,1757846336430,-175.45136514,0.00019391,2]
[385433396,1757846338993,-326.44136532,0.00019391,2]
[385433397,1757846340619,-153.15883562,0.00019391,2]
[385433398,1757846341935,-184.11073457,0.00019391,2]
[385433399,1757846343381,-384.11622947,0.00019391,2]
[385433400,1757846344845,-358.67745514,0.00019391,2]
[385433401,1757846347953,-524.13135283,0.00019391,2]
[385433402,1757846353313,-202.08996715,0.00019391,2]
[385433403,1757846354812,-203.2127254,0.00019391,2]
[385433404,1757846357325,-329.72773594,0.00019391,2]
[385433405,1757846359289,-165.43151966,0.00019391,2]
[385433406,1757846360700,-269.64443884,0.00019391,2]
[385433407,1757846362095,-169.97848324,0.00019391,2]
[385433409,1757846364696,-206.40566913,0.00019391,2]
[385433410,1757846368243,-309.22852716,0.00019391,2]
[385433411,1757846370817,-155.90967631,0.00019391,2]
[385433412,1757846373041,-300.0,0.00019391,2]
[385433413,1757846375057,-252.81595588,0.00019391,2]
[385433414,1757846377598,-339.81310679,0.00019391,2]
[385433415,1757846379605,-314.28560924,0.00019391,2]
[385433416,1757846380987,-96.45031252,0.00019391,2]
[385433423,1757846497830,-200.80222278,0.00019391,2]
[385433426,1757846593286,-200.8115896,0.00019005,2]
[385433427,1757846595355,-15.95308322,0.00019005,2]
[385433428,1757846595379,-200.80222278,0.00019197,2]
[385433430,1757846764433,-319.62597036,0.00019197,2]
[385433431,1757846767619,-163.70915519,0.00019197,2]
[385433432,1757846767639,-130.1986883,0.000192,2]
[385433433,1757846771254,-276.39245179,0.000192,2]
[385433434,1757846774383,-93.40885991,0.000192,2]
[385433435,1757846801165,2657.08783333,0.00018422,2]
[385433438,1757846959056,2340.03315104,0.000199,2]
[385433474,1757847032450,-299.019904,0.00020058,2]
[385433476,1757847032459,-223.381116,0.00020063,2]
[385433478,1757847032468,-168.0,0.00020541,2]
[385433480,1757847032478,-168.0,0.00020778,2]
[385433482,1757847032487,-168.0,0.00020822,2]
[385433484,1757847032497,-168.0,0.00020855,2]
[385433486,1757847032507,-190.45624909,0.00021073,2]
[385433488,1757847032518,-240.88447303,0.00021073,2]
[385433490,1757847032527,-513.3039644,0.00021087,2]
[385433492,1757847032536,-269.00203999,0.000211,2]
[385433507,1757847032665,-1217.79368148,0.000211,2]
[385433518,1757847032765,-2435.58736296,0.000211,2]
[385433535,1757847032914,-4871.17472592,0.000211,2]
[385433550,1757847033048,-257.66054816,0.000211,2]
[385433554,1757847033079,-168.0,0.00021145,2]
[385433558,1757847033111,-2340.03315082,0.00021149,2]
[385433562,1757847033139,-300.0,0.00021172,2]
[385433565,1757847033168,-501.4656913,0.00021173,2]
[385433569,1757847033196,-500.0,0.00021173,2]
[385433573,1757847033224,-500.0,0.00021173,2]
[385433577,1757847033251,-365.69121944,0.00021173,2]
[385433592,1757847033400,-134.30878056,0.00021173,2]
[385433596,1757847033430,-500.0,0.00021173,2]
[385433600,1757847033457,-500.83706707,0.00021173,2]
[385433601,1757847033484,-500.0,0.00021173,2]
[385433602,1757847033512,-500.0,0.00021173,2]
[385433603,1757847033540,-500.85520832,0.00021173,2]
[385433604,1757847033567,-500.0,0.00021173,2]
[385433605,1757847033596,-501.14329977,0.00021173,2]
[385433606,1757847033623,-500.0,0.00021173,2]
[385433607,1757847033651,-500.0,0.00021173,2]
[385433608,1757847033690,-223.97718062,0.00021173,2]
[385433609,1757847034056,-277.76692732,0.00021173,2]
[385433610,1757847034084,-500.0,0.00021173,2]
[385433611,1757847034112,-503.38114305,0.00021173,2]
[385433612,1757847034141,-500.0,0.00021173,2]
[385433613,1757847034170,-500.0,0.00021173,2]
[385433614,1757847034198,-501.03488358,0.00021173,2]
[385433615,1757847034226,-500.37664119,0.00021173,2]
[385433616,1757847034253,-500.75798661,0.00021173,2]
[385433617,1757847034279,-501.52711983,0.00021173,2]
[385433618,1757847034307,-500.0,0.00021173,2]
[385433619,1757847034381,-500.0,0.00021173,2]
[385433620,1757847034408,-500.0,0.00021173,2]
[385433621,1757847034435,-503.1782557,0.00021173,2]
[385433622,1757847034462,-500.0,0.00021173,2]
[385433623,1757847034489,-500.0,0.00021173,2]
[385433624,1757847034540,-500.83336305,0.00021173,2]
[385433625,1757847034591,-500.0,0.00021173,2]
[385433626,1757847034625,-500.0,0.00021173,2]
[385433627,1757847034651,-500.0,0.00021173,2]
[385433628,1757847034679,-250.0,0.00021174,2]
[385433629,1757847034858,-1289.83,0.00021175,3]
[385433630,1757847034886,-644.92,0.00021175,3]
[385433631,1757847034913,-322.46,0.00021175,3]
[385433632,1757847034940,-161.23,0.00021175,3]
[385433633,1757847034967,-483.7,0.00021175,3]
[385433634,1757847034996,-500.0,0.00021184,2]
[385433635,1757847035027,-261.67397722,0.00021184,2]
[385433636,1757847035057,-254.30904257,0.00021184,2]
[385433637,1757847035085,-500.0,0.00021184,2]
[385433638,1757847035113,-500.0,0.00021184,2]
[385433639,1757847035231,-500.0,0.00021184,2]
[385433640,1757847035263,-500.0,0.00021184,2]
[385433641,1757847035291,-500.0,0.00021184,2]
[385433642,1757847035323,-245.28432426,0.00021184,2]
[385433643,1757847035352,-500.0,0.00021184,2]
[385433644,1757847035380,-500.0,0.00021184,2]
[385433645,1757847035408,-500.0,0.00021184,2]
[385433646,1757847035438,-500.0,0.00021184,2]
[385433647,1757847035465,-500.0,0.00021184,2]
[385433648,1757847035493,-500.0,0.00021184,2]
[385433649,1757847035521,-9.44135148,0.00021184,2]
[385433650,1757847035572,-490.55864852,0.00021184,2]
[385433651,1757847035600,-500.0,0.00021184,2]
[385433652,1757847035628,-500.0,0.00021184,2]
[385433653,1757847035656,-168.66639457,0.00021184,2]
[385433654,1757847035685,-168.66639457,0.00021184,2]
[385433655,1757847035713,-168.66639457,0.00021184,2]
[385433656,1757847035742,-168.66639457,0.00021184,2]
[385433657,1757847035771,-168.66639457,0.00021184,2]
[385433658,1757847035798,-818.0,0.00021184,2]
[385433659,1757847035826,-500.0,0.00021184,2]
[385433660,1757847035855,-157.0,0.00021184,2]
[385433661,1757847035885,-187.83642594,0.00021184,2]
[385433662,1757847035912,-266.64721824,0.00021184,2]
[385433663,1757847035939,-480.0,0.00021184,2]
[385433680,1757847038298,-8165.08242788,0.00021185,2]
[385433681,1757847038319,-10000.01,0.00021185,2]
[385433682,1757847038549,-3829.87779624,0.00021185,2]
[385433683,1757847038561,-106700.88535328,0.00021185,2]
[385433684,1757847038570,-170.910846,0.00021187,2]
[385433685,1757847038579,-151.0,0.00021187,2]
[385433686,1757847038588,-279.329457,0.00021187,2]
[385433687,1757847038598,-151.0,0.00021187,2]
[385433688,1757847038607,-151.0,0.00021187,2]
[385433689,1757847038615,-151.0,0.00021187,2]
[385433690,1757847038625,-151.0,0.00021187,2]
[385433691,1757847038633,-151.0,0.00021187,2]
[385433692,1757847038643,-151.0,0.00021187,2]
[385433693,1757847038652,-151.0,0.00021187,2]
[385433694,1757847038661,-151.0,0.00021187,2]
[385433695,1757847038670,-151.0,0.00021187,2]
[385433696,1757847038679,-151.0,0.00021187,2]
[385433697,1757847038687,-153.857443,0.00021187,2]
[385433698,1757847038696,-151.0,0.00021187,2]
[385433699,1757847038706,-151.0,0.00021187,2]
[385433700,1757847038715,-151.0,0.00021187,2]
[385433701,1757847038723,-151.0,0.00021187,2]
[385433702,1757847038732,-151.0,0.00021187,2]
[385433703,1757847038741,-151.0,0.00021187,2]
[385433704,1757847038750,-151.0,0.00021187,2]
[385433705,1757847038759,-151.0,0.00021187,2]
[385433706,1757847038768,-151.0,0.00021187,2]
[385433707,1757847038777,-151.0,0.00021187,2]
[385433708,1757847038786,-289.679136,0.00021187,2]
[385433709,1757847038795,-151.0,0.00021187,2]
[385433710,1757847038805,-151.0,0.00021187,2]
[385433711,1757847038814,-151.452759,0.00021187,2]
[385433712,1757847038823,-164.822874,0.00021187,2]
[385433713,1757847038832,-151.0,0.00021187,2]
[385433714,1757847038841,-151.0,0.00021187,2]
[385433715,1757847038850,-151.0,0.00021187,2]
[385433716,1757847038859,-152.308217,0.00021187,2]
[385433717,1757847038868,-153.446827,0.00021187,2]
[385433718,1757847038877,-151.0,0.00021187,2]
[385433719,1757847038887,-151.676152,0.00021187,2]
[385433720,1757847038896,-152.761058,0.00021187,2]
[385433721,1757847038905,-154.548553,0.00021187,2]
[385433722,1757847038914,-151.0,0.00021187,2]
[385433723,1757847038923,-151.0,0.00021187,2]
[385433724,1757847038932,-151.0,0.00021187,2]
[385433725,1757847038942,-151.0,0.00021187,2]
[385433726,1757847038951,-196.378904,0.00021187,2]
[385433727,1757847038959,-152.087966,0.00021187,2]
[385433728,1757847038968,-153.968198,0.00021187,2]
[385433729,1757847038977,-155.001347,0.00021187,2]
[385433730,1757847038986,-151.0,0.00021187,2]
[385433731,1757847038995,-151.0,0.00021187,2]
[385433732,1757847039004,-153.902806,0.00021187,2]
[385433733,1757847039017,-151.0,0.00021187,2]
[385433734,1757847039026,-276.062693,0.00021187,2]
[385433735,1757847039035,-292.566696,0.00021187,2]
[385433736,1757847039044,-167.637528,0.00021187,2]
[385433737,1757847039053,-151.0,0.00021187,2]
[385433738,1757847039062,-270.44843,0.00021187,2]
[385433739,1757847039072,-151.0,0.00021187,2]
[385433740,1757847039083,-151.0,0.00021187,2]
[385433741,1757847039092,-151.0,0.00021187,2]
[385433742,1757847039102,-151.0,0.00021187,2]
[385433743,1757847039111,-151.0,0.00021187,2]
[385433744,1757847039121,-151.0,0.00021187,2]
[385433745,1757847039130,-180413.31165411,0.00021187,2]
[385433746,1757847039139,-154.1097849,0.000212,2]
[385433747,1757847039148,-513.3039644,0.0002127,2]
[385433748,1757847039157,-158.0788868,0.00021276,2]
[385433749,1757847039166,-1478.54872597,0.00021316,2]
[385433750,1757847039179,-2380.10653673,0.00021316,2]
[385433751,1757847039188,-1320.2892721,0.00021355,2]
[385433752,1757847039197,-531.23217266,0.00021367,2]
[385433753,1757847039206,-847.27885267,0.00021367,2]
[385433754,1757847039216,-160.0,0.0002137,2]
[385433755,1757847039225,-217.77739939,0.00021376,2]
[385433756,1757847039234,-160.0,0.00021376,2]
[385433757,1757847039242,-233.1999649,0.00021376,2]
[385433758,1757847039252,-733.57956956,0.0002139,2]
[385433759,1757847039261,-346.91886625,0.0002139,2]
[385433760,1757847039270,-168.0,0.00021441,2]
[385433761,1757847039280,-513.3039644,0.00021452,2]
[385433762,1757847039290,-818.0,0.00021458,2]
[385433763,1757847039299,-500.0,0.00021458,2]
[385433764,1757847039307,-160.0,0.00021568,3]
[385433765,1757847039316,-513.3039644,0.00021635,2]
[385433766,1757847039325,-286.0,0.00021675,2]
[385433767,1757847039334,-151.0,0.000217,4]
[385433768,1757847039344,-249.895,0.00021702,2]
[385433769,1757847039353,-172.98450923,0.00021702,2]
[385433770,1757847039362,-502.8461323,0.00021721,2]
[385433771,1757847039371,-506.76297353,0.00021721,2]
[385433772,1757847039380,-1000.0,0.00021721,2]
[385433773,1757847039389,-1000.0,0.00021721,2]
[385433774,1757847039398,-686.9058687,0.00021721,2]
[385433775,1757847039407,-1000.0,0.00021721,2]
[385433776,1757847039416,-1000.0,0.00021721,2]
[385433777,1757847039425,-1000.0,0.00021721,2]
[385433778,1757847039435,-1000.0,0.00021721,2]
[385433779,1757847039444,-1000.0,0.00021721,2]
[385433780,1757847039456,-1000.0,0.00021721,2]
[385433781,1757847039465,-1000.0,0.00021721,2]
[385433782,1757847039475,-842.75575565,0.00021721,2]
[385433783,1757847039485,-472.21422934,0.00021721,2]
[385433784,1757847039495,-1000.0,0.00021721,2]
[385433785,1757847039504,-1000.0,0.00021721,2]
[385433786,1757847039514,-502.72568923,0.00021721,2]
[385433787,1757847039523,-151.0,0.00021721,2]
[385433788,1757847039534,-151.0,0.00021721,2]
[385433789,1757847039544,-153.356465,0.00021721,2]
[385433790,1757847039555,-287.702866,0.00021721,2]
[385433791,1757847039563,-151.0,0.00021721,2]
[385433792,1757847039572,-151.0,0.00021721,2]
[385433793,1757847039581,-152.070344,0.00021721,2]
[385433794,1757847039590,-151.0,0.00021721,2]
[385433795,1757847039599,-151.0,0.00021721,2]
[385433796,1757847039608,-151.0,0.00021721,2]
[385433797,1757847039617,-151.0,0.00021721,2]
[385433798,1757847039628,-151.0,0.00021721,2]
[385433799,1757847039637,-151.0,0.00021721,2]
[385433800,1757847039646,-152.124298,0.00021721,2]
[385433801,1757847039668,-151.0,0.00021721,2]
[385433802,1757847039689,-175.952152,0.00021721,2]
[385433803,1757847039702,-151.0,0.00021721,2]
[385433804,1757847039712,-151.0,0.00021721,2]
[385433805,1757847039722,-151.0,0.00021721,2]
[385433806,1757847039732,-200.471635,0.00021721,2]
[385433807,1757847039741,-272.81324317,0.00021732,2]
[385433808,1757847039750,-818.0,0.00021732,2]
[385433809,1757847039760,-151.0,0.000218,4]
[385433810,1757847039768,-151.0,0.00021812,2]
[385433811,1757847039779,-151.0,0.00021812,2]
[385433812,1757847039787,-151.0,0.00021812,2]
[385433813,1757847039797,-151.0,0.00021812,2]
[385433814,1757847039806,-151.0,0.00021812,2]
[385433815,1757847039816,-168.0,0.00021812,2]
[385433816,1757847039825,-1000.0,0.00021817,2]
[385433817,1757847039834,-3168.35520206,0.00021817,3]
[385433818,1757847039843,-154.907835,0.00021817,2]
[385433819,1757847039852,-300.160143,0.00021817,2]
[385433820,1757847039861,-151.0,0.00021817,2]
[385433821,1757847039870,-151.0,0.00021817,2]
[385433822,1757847039879,-153.772262,0.00021817,2]
[385433823,1757847039887,-151.0,0.00021817,2]
[385433824,1757847039900,-151.0,0.00021817,2]
[385433825,1757847039910,-154.593084,0.00021817,2]
[385433826,1757847039922,-152.960931,0.00021817,2]
[385433827,1757847039932,-151.9483,0.00021817,2]
[385433828,1757847039942,-158.635306,0.00021817,2]
[385433829,1757847039952,-151.0,0.00021817,2]
[385433830,1757847039962,-241.367524,0.00021817,2]
[385433831,1757847039971,-151.0,0.00021817,2]
[385433832,1757847039980,-151.0,0.00021817,2]
[385433833,1757847039989,-151.0,0.00021817,2]
[385433834,1757847039999,-151.0,0.00021817,2]
[385433836,1757847040009,-153.683209,0.00021817,2]
[385433837,1757847040019,-151.0,0.00021817,2]
[385433838,1757847040028,-151.0,0.00021817,2]
[385433839,1757847040037,-151.0,0.00021817,2]
[385433840,1757847040047,-165.279308,0.00021817,2]
[385433841,1757847040056,-151.0,0.00021817,2]
[385433842,1757847040066,-151.0,0.00021817,2]
[385433843,1757847040075,-151.0,0.00021817,2]
[385433844,1757847040084,-151.0,0.00021817,2]
[385433845,1757847040094,-513.3039644,0.00021817,2]
[385433846,1757847040104,-151.0,0.00021817,2]
[385433847,1757847040114,-226.464148,0.00021817,2]
[385433848,1757847040123,-151.0,0.00021817,2]
[385433849,1757847040133,-151.0,0.00021817,2]
[385433850,1757847040143,-151.0,0.00021817,2]
[385433851,1757847040153,-1000.0,0.00021817,2]
[385433852,1757847040162,-1000.0,0.00021817,2]
[385433853,1757847040172,-1000.0,0.00021817,2]
[385433855,1757847040182,-1000.0,0.00021817,2]
[385433857,1757847040191,-883.736595,0.00021817,2]
[385433859,1757847040201,-151.0,0.00021817,2]
[385433860,1757847040211,-151.0,0.00021817,2]
[385433861,1757847040220,-151.0,0.00021817,2]
[385433862,1757847040231,-976.0,0.00021843,2]
[385433864,1757847040240,-634.0,0.00021843,2]
[385433865,1757847040249,-2156.0,0.00021843,2]
[385433866,1757847040258,-410.0,0.00021843,2]
[385433867,1757847040267,-151.0,0.00021843,2]
[385433868,1757847040277,-2696.0,0.00021843,2]
[385433869,1757847040286,-313.92364578,0.00021851,2]
[385433870,1757847040296,-4754.81135166,0.000219,2]
[385433871,1757847040306,-151.0,0.000219,3]
[385433872,1757847040315,-151.0,0.000219,3]
[385433873,1757847040326,-151.0,0.000219,2]
[385433874,1757847040335,-151.0,0.000219,2]
[385433875,1757847040344,-151.0,0.000219,2]
[385433876,1757847040354,-151.0,0.000219,2]
[385433877,1757847040363,-151.0,0.000219,2]
[385433878,1757847040372,-151.0,0.000219,2]
[385433879,1757847040381,-240.457075,0.000219,2]
[385433880,1757847040391,-151.0,0.000219,2]
[385433881,1757847040400,-151.0,0.000219,2]
[385433882,1757847040410,-151.0,0.000219,2]
[385433883,1757847040419,-298.40289207,0.00021912,2]
[385433884,1757847040428,-480.0,0.00021917,2]
[385433885,1757847040438,-512.41036184,0.00021917,2]
[385433886,1757847040447,-480.0,0.00021917,2]
[385433887,1757847040456,-480.0,0.00021917,2]
[385433888,1757847040465,-480.0,0.00021917,2]
[385433889,1757847040475,-481.99683548,0.00021917,2]
[385433890,1757847040484,-480.0,0.00021917,2]
[385433891,1757847040494,-480.0,0.00021917,2]
[385433892,1757847040504,-480.0,0.00021917,2]
[385433893,1757847040512,-480.0,0.00021917,2]
[385433894,1757847040522,-480.0,0.00021917,2]
[385433895,1757847040531,-480.0,0.00021917,2]
[385433896,1757847040541,-480.0,0.00021917,2]
[385433897,1757847040551,-764.7,0.00021917,2]
[385433898,1757847040561,-480.0,0.00021917,2]
[385433899,1757847040571,-482.42300143,0.00021917,2]
[385433900,1757847040581,-480.0,0.00021917,2]
[385433901,1757847040590,-480.0,0.00021917,2]
[385433902,1757847040600,-151.0,0.00021917,2]
[385433903,1757847040610,-151.0,0.00021917,2]
[385433904,1757847040619,-480.0,0.00021917,2]
[385433905,1757847040628,-480.0,0.00021917,2]
[385433906,1757847040638,-480.0,0.00021917,2]
[385433908,1757847040647,-480.0,0.00021917,2]
[385433910,1757847040656,-480.0,0.00021917,2]
[385433911,1757847040665,-480.0,0.00021917,2]
[385433912,1757847040674,-480.0,0.00021917,2]
[385433913,1757847040683,-480.0,0.00021917,2]
[385433914,1757847040692,-480.0,0.00021917,2]
[385433915,1757847040701,-480.0,0.00021917,2]
[385433916,1757847040710,-480.0,0.00021917,2]
[385433917,1757847040719,-169.4035223,0.00021917,2]
[385433918,1757847040728,-480.0,0.00021917,2]
[385433919,1757847040737,-480.0,0.00021917,2]
[385433920,1757847040746,-480.0,0.00021917,2]
[385433921,1757847040755,-480.0,0.00021917,2]
[385433922,1757847040764,-480.0,0.00021917,2]
[385433923,1757847040773,-480.0,0.00021917,2]
[385433924,1757847040782,-480.0,0.00021917,2]
[385433925,1757847040790,-480.0,0.00021917,2]
[385433926,1757847040799,-480.0,0.00021917,2]
[385433927,1757847040808,-482.28867914,0.00021917,2]
[385433928,1757847040817,-480.0,0.00021917,2]
[385433929,1757847040826,-213.82,0.00021917,2]
[385433930,1757847040835,-480.0,0.00021917,2]
[385433931,1757847040844,-1033.32,0.00021917,2]
[385433932,1757847040853,-480.0,0.00021917,2]
[385433933,1757847040862,-480.0,0.00021917,2]
[385433934,1757847040871,-480.0,0.00021917,2]
[385433935,1757847041017,-899.31,0.00021917,2]
[385433936,1757847041030,-480.0,0.00021917,2]
[385433937,1757847041039,-480.0,0.00021917,2]
[385433938,1757847041048,-480.0,0.00021917,2]
[385433939,1757847041057,-480.0,0.00021917,2]
[385433940,1757847041067,-486.33580903,0.00021917,2]
[385433941,1757847041076,-561.54,0.00021917,2]
[385433942,1757847041085,-482.75823982,0.00021917,2]
[385433943,1757847041094,-480.0,0.00021917,2]
[385433944,1757847041104,-480.0,0.00021917,2]
[385433945,1757847041113,-1000.0,0.00021917,2]
[385433946,1757847041122,-1056.66,0.00021917,2]
[385433947,1757847041134,-480.0,0.00021917,2]
[385433948,1757847041145,-480.0,0.00021917,2]
[385433949,1757847041154,-480.0,0.00021917,2]
[385433950,1757847041163,-480.0,0.00021917,2]
[385433951,1757847041172,-480.0,0.00021917,2]
[385433952,1757847041181,-480.0,0.00021917,2]
[385433953,1757847041193,-480.0,0.00021917,2]
[385433954,1757847041202,-490.46318283,0.00021917,2]
[385433955,1757847041211,-480.0,0.00021917,2]
[385433956,1757847041220,-482.03772107,0.00021917,2]